{"text_format":"1","workbook":"xlsx","n_sheets":1,"sheets":["Aufforstungen"],"not_rendered":{"charts":0,"images":0,"macros":1,"external_links":0,"defined_names":1,"comments":1,"pivot_tables":0},"unopened":[],"bounds":{"document_bytes":16777216,"sheet_cells":100000,"rows_first":2000,"rows_last":500,"rows_between":2000,"halvings":0,"cell_chars":16384,"cell_head_chars":4096},"cells_cut":0,"cells_raw":0,"read":"whole","date_system":"1900"}

{"sheet":"Aufforstungen","index":0,"n_rows":254,"n_cols":19,"rows_kept":254,"cut":false,"hidden":false,"merged":[[176,12,176,16],[176,17,176,18],[173,12,173,16],[173,17,173,18],[174,2,174,6],[174,7,174,8],[174,12,174,16],[174,17,174,18],[175,2,175,6],[175,7,175,8],[175,12,175,16],[175,17,175,18],[172,12,172,16],[172,17,172,18],[122,20,122,23],[124,20,124,23],[124,16,124,17],[122,6,122,7],[124,6,124,7],[151,7,151,8],[137,1,137,8],[128,2,128,8],[132,2,132,8],[134,7,134,8],[148,7,148,8],[122,16,122,17],[144,14,144,15],[144,17,144,18],[135,14,135,17],[134,17,134,18],[103,14,103,17],[93,4,93,5],[103,4,103,7],[111,1,111,3],[111,11,111,13],[112,1,112,3],[111,16,111,17],[171,2,171,6],[171,7,171,8],[171,12,171,16],[171,17,171,18],[119,11,119,18],[121,1,121,8],[93,14,93,15],[94,14,94,15],[95,14,95,15],[99,2,99,3],[100,2,100,3],[93,12,93,13],[94,12,94,13],[104,0,104,9],[105,0,105,9],[93,2,93,3],[94,2,94,3],[95,2,95,3],[96,2,96,3],[97,2,97,3],[98,2,98,3],[106,0,106,9],[114,16,114,17],[113,6,113,7],[112,16,112,17],[95,12,95,13],[96,12,96,13],[94,4,94,5],[173,2,173,6],[173,7,173,8],[176,2,176,6],[176,7,176,8],[251,6,251,8],[242,6,242,8],[148,4,148,5],[179,0,179,9],[155,2,155,8],[164,2,164,8],[165,2,165,4],[172,2,172,6],[172,7,172,8],[242,12,242,14],[200,2,200,8],[214,2,215,8],[203,2,203,8],[204,2,204,4],[198,2,198,8],[186,2,186,8],[205,2,205,8],[199,2,199,8],[188,12,189,18],[190,12,190,14],[190,15,190,18],[192,4,192,7],[210,2,210,8],[211,2,211,8],[227,2,227,8],[230,2,230,8],[219,2,224,8],[192,14,192,17],[186,12,186,18],[197,12,232,18],[190,5,190,8],[206,2,207,8],[121,11,121,18],[237,6,237,8],[202,2,202,4],[95,4,95,5],[96,4,96,5],[97,4,97,5],[184,2,184,8],[188,2,189,8],[137,11,137,18],[236,12,236,14],[236,16,236,18],[148,17,148,18],[140,4,140,5],[140,7,140,8],[190,2,190,4],[97,14,97,15],[98,14,98,15],[99,14,99,15],[151,17,151,18],[140,14,140,15],[184,12,184,18],[135,4,135,7],[144,4,144,5],[144,7,144,8],[70,11,70,18],[64,1,64,8],[64,11,64,18],[76,1,76,8],[66,1,66,8],[75,4,75,8],[117,4,117,7],[117,14,117,17],[114,6,114,7],[82,1,82,7],[82,11,82,17],[113,1,113,3],[114,1,114,3],[114,11,114,13],[113,11,113,13],[112,11,112,13],[98,4,98,5],[99,4,99,5],[100,4,100,5],[100,14,100,15],[90,5,91,8],[100,12,100,13],[113,16,113,17],[112,6,112,7],[15,1,16,6],[3,6,3,8],[3,16,3,18],[4,3,4,8],[4,13,4,18],[5,5,5,6],[5,7,5,8],[8,1,8,6],[10,1,11,6],[13,1,13,6],[6,1,6,2],[18,1,18,6],[29,1,29,8],[29,11,29,18],[24,11,24,18],[24,1,24,8],[56,6,56,7],[53,6,53,7],[36,5,36,8],[34,4,34,5],[53,16,53,17],[48,1,49,5],[48,11,49,15],[53,1,54,5],[48,6,48,7],[41,1,41,8],[41,11,41,18],[40,15,40,18],[45,1,46,4],[22,1,23,6],[45,11,46,14],[56,1,57,5],[56,11,57,15],[34,17,34,18],[34,7,34,8],[34,14,34,15],[36,1,38,4],[90,1,91,3],[111,6,111,7],[75,14,75,17],[85,1,85,8],[85,11,85,18],[109,1,109,8],[109,11,109,18],[87,5,88,8],[87,15,88,18],[97,12,97,13],[98,12,98,13],[99,12,99,13],[96,14,96,15],[68,1,68,8],[80,1,80,6],[80,11,80,16],[63,1,63,8],[61,1,61,8],[87,1,88,3],[48,16,48,17],[38,15,38,18],[40,5,40,8],[148,14,148,15],[140,17,140,18],[38,11,38,14],[73,7,73,8],[38,5,38,8],[59,16,59,17],[59,11,60,15],[126,1,126,8],[87,11,88,13],[90,11,91,13],[90,15,91,18],[53,11,54,15],[56,16,56,17],[69,1,69,8],[83,1,83,8],[83,11,83,18],[78,1,78,8],[78,11,78,18],[61,11,61,18],[59,1,60,5],[59,6,59,7],[67,1,67,8],[76,11,76,18],[70,1,70,8]]}
[null,"    Aufforstungen"]
[]
[]
[null,"  zum Antrag vom",null,null,null,null,null,null,null,null,null,"  zum Verwendungsnachweis vom"]
[null,"  Antragsteller",null,null,null,null,null,null,null,null,null,"  Antragsteller",null,{"$f":"IF(D5=\"\",\"\",D5)","v":""}]
[]
[null,null,null,null,null,null,null,"bitte ankreuzen",null,null,null,null,null,null,null,"ja",null,"nein"]
[]
[null,"  Nr. 2.1.2.1  Bodenvorbereitung mit Pferd für Saat (...)",null,null,null,null,null,null,"= A.",null,null,{"$f":"IF($H9=\"x\",\"  Maßnahme durchgeführt?\",\"\")","v":""}]
[]
[null,"  Nr. 2.1.2.2  Aufforstung, Anlage von Waldrändern, \n  Voranbau,  Unterbau und Saat ... (...)"]
[null,null,null,null,null,null,null,null,"= B.",null,null,{"$f":"IF($H12=\"x\",\"  Maßnahme durchgeführt?\",\"\")","v":""}]
[]
[null,"  Nr. 2.1.2.3  Nachbesserungen (...),",null,null,null,null,null,null,"= B.",null,null,{"$f":"IF($H14=\"x\",\"  Maßnahme durchgeführt?\",\"\")","v":""}]
[]
[null,"  Nr. 2.1.2.5  Schutz der Aufforstungen und erwarteter \n  Naturverjüngung ... durch Einzelschutz … Wildschutzzaun"]
[null,null,null,null,null,null,null,null,"= C.",null,null,{"$f":"IF($H17=\"x\",\"  Maßnahme durchgeführt?\",\"\")","v":""}]
[]
[null,"  Nr. 5.1.1  Erstaufforstung und Saat (...)",null,null,null,null,null,null,"= B.",null,null,{"$f":"IF($H19=\"x\",\"  Maßnahme durchgeführt?\",\"\")","v":""}]
[]
[null,"  Nr. 5.1.2  Nachbesserung geförderten Kulturen",null,null,null,null,null,null,"= B.",null,null,{"$f":"IF($H21=\"x\",\"  Maßnahme durchgeführt?\",\"\")","v":""}]
[]
[null,"  Nr. 5.1.4  Schutz der Erstaufforstungen und\n  Naturverjüngungen bei Erstaufforstung"]
[null,null,null,null,null,null,null,null,"= C.",null,null,{"$f":"IF($H24=\"x\",\"  Maßnahme durchgeführt?\",\"\")","v":""}]
[]
[]
[null,"  Aufforstung",null,null,null,{"$f":"IF(H12=\"x\",\"x\",IF(H14=\"x\",\"x\",IF(H19=\"x\",\"x\",IF(H21=\"x\",\"x\",\"\"))))","v":""},"  ja",{"$f":"IF(F27=\"x\",\"\",\"x\")","v":"x"},"  nein"]
[]
[null,"  Förderung in Schutzgebiet (Nr. 1.3.1)?",null,null,null,null,"  ja",null,"  nein"]
[]
[]
[null,"  I. ANTRAGSDATEN",null,null,null,null,null,null,null,null,null,"  I. VERWENDUNGSNACHWEISDATEN"]
[null,"  (Art, Ort, Umfang, Durchf.-Zeitraum, Flächenermittlungsverfahren)",null,null,null,null,null,null,null,null,null,"  (Art, Ort, Umfang, Durchf.-Zeitraum, Flächenermittlungsverfahren)"]
[]
[null,"  Durchf.-Zeitraum von",null,null,null,null,"bis …",null,null,null,null,"  Durchf.-Zeitraum von",null,null,null,null,"bis …"]
[]
[null,"  Gemarkung,\n  Flur, Flurstück,\n  Unterabteilung",null,null,null,null,null,null,null,null,null,"  Durchführung wie geplant",null,null,null,null,"  (ja = J, nein = N)"]
[]
[null,null,null,null,null,null,null,null,null,null,null,"  Gemarkung usw.",null,null,null,{"$f":"IF(ISBLANK(F39),\" \",IF($P$37=\"J\",F39,IF($P$37=\"T\",F39,\" \")))","v":" "}]
[]
[null,"  Flächenermittlungsverfahren",null,null,null,null,null,null,null,null,null,"  Flächenermittlungsverfahren",null,null,null,{"$f":"IF(ISBLANK(F41),\" \",IF($P$37=\"J\",F41,IF($P$37=\"T\",F41,\" \")))","v":" "}]
[]
[]
[null,"  Nur bei Maßnahmen nach Nr. 2.1.2.2 PKW-RL:",null,null,null,null,null,null,null,null,null,"  Nur bei Maßnahmen nach Nr. 2.1.2.2 PKW-RL:"]
[]
[null,"  Handelt es sich um eine Kalamitäts-\n  fläche, die mit mehr als 50 % \n  Nadelholz bestockt war?",null,null,null,null,"  ja",null,"  nein",null,null,"  Handelt es sich um eine Kalamitäts-\n  fläche, die mit mehr als 50 % \n  Nadelholz bestockt war?",null,null,null,{"$f":"IF($P$37=\"J\",F46,\" \")","v":" "},"  ja",{"$f":"IF($P$37=\"J\",H46,\" \")","v":" "},"  nein"]
[]
[]
[null,"  Höhe des Anteils an Nadelholz und nicht \n  heimischem Laubholz im Vorbestand",null,null,null,null,null,null,"  in %",null,null,"  Höhe des Anteils an Nadelholz und nicht \n  heimischem Laubholz im Vorbestand",null,null,null,null,{"$f":"IF($P$37=\"J\",G49,\" \")","v":" "},null,"  in %"]
[]
[]
[null,"  Nur bei Maßnahmen nach Nr. 2.1.2.2 oder Nr. 2.1.2.3 PKW-RL:",null,null,null,null,null,null,null,null,null,"  Nur bei Maßnahmen nach Nr. 2.1.2.2 oder Nr. 2.1.2.3 PKW-RL:"]
[]
[null,"  Fläche ges. Anpflanzung = B.a) + B.b) + B.c)\n  (Anpflanzung + Saat + Waldrand)",null,null,null,null,null,null,"  in ha",null,null,"  Fläche ges. Anpflanzung = B.a) + B.b) + B.c)\n  (Anpflanzung + Saat + Waldrand)",null,null,null,null,{"$f":"IF($P$37=\"J\",G54,\" \")","v":" "},null,"  in ha"]
[]
[]
[null,"  Flächenanteil nur des Nadelholzes\n  an der Aufforstung in ha",null,null,null,null,null,null,"  in ha",null,null,"  Flächenanteil nur des Nadelholzes\n  an der Aufforstung in ha",null,null,null,null,{"$f":"IF($P$37=\"J\",G57,\" \")","v":" "},null,"  in ha"]
[]
[]
[null,"  Flächenanteil nur des nicht-heimischen \n  Laubholzes an der Aufforstung in ha",null,null,null,null,null,null,"  in ha",null,null,"  Flächenanteil nur des nicht-heimischen \n  Laubholzes an der Aufforstung in ha",null,null,null,null,{"$f":"IF($P$37=\"J\",G60,\" \")","v":" "},null,"  in ha"]
[]
[]
[]
[null,{"$f":"IF($H$12=\"x\",\"  Falls ein Waldrand nachgebessert wird, sind evtl. die Baumstückzahlen aus dem \n  Basisantrag in qm umzurechnen und unter B.c) einzugeben.\",\nIF($H$14=\"x\",\"  Falls ein Waldrand nachgebessert wird, sind evtl. die Baumstückzahlen aus dem \n  Basisantrag in qm umzurechnen und unter B.c) einzugeben.\",\"\"))","v":""}]
[]
[]
[null,{"$f":"IF(F46<>\"x\",\"\",\nIF($F$46=\"x\",\" Aufforstung der Kalamitätsfläche hier nicht förderbar - \nFörderung bitte über Extremwetterfolgen-RL beantragen!\",\"\"))","v":""}]
[null,{"$f":"IF(G49=\"\",\"\",\nIF(G57<=0,\"\",\nIF(G49<50,\"Anteil an NH und / oder nicht-heimischem LH des Vorbestandes muss \nmind. 50 % betragen, um NH und / oder heimisches LH zu fördern\",\"\")))","v":""}]
[null,{"$f":"IF(F29=\"\",\"\",\nIF($E$88+$E$91>0.2,\"NH und/oder nicht heimisches LH im SG dürfen höchstens 20 % betragen\",\"\"))","v":""}]
[null,{"$f":"IF(F29=\"x\",\"\",\nIF($E$88=\"\",\"\",\nIF($E$91=\"\",\"\",\nIF($E$88+$E$91>0.35,\"NH und/oder nicht heimisches LH im SG dürfen höchstens 35 % betragen\",\"\"))))","v":""}]
[]
[]
[null,"  Bei Aufforstungen: Empfohlener Waldentwicklungstyp"]
[null,"  nach dem Waldbaukonzept NRW - Ziffer …"]
[]
[null,"  Pflanzverfahren",null,null,null,null,null,null,null,null,null,"  Pflanzverfahren",null,null,{"$f":"IF(ISBLANK(E76),\" \",IF($P$37=\"J\",E76,\" \"))","v":" "}]
[]
[]
[null,"  A. Bodenvorbereitung mit Pferd",null,null,null,null,null,null,null,null,null,"  A.  Bodenvorbereitung "]
[]
[null,"   Fläche in ha:",null,null,null,null,null,null,null,null,null,"   Fläche in ha:",null,null,null,null,null,null,{"$f":"IF($P$37=\"J\",I81,\"\")","v":""}]
[]
[null,{"$f":"IF($H$9=\"x\",\"   Förderbetrag für A. Bodenvorbereitung:\",\"\")","v":""},null,null,null,null,null,null,{"$f":"IF(H9=\"x\",600*I81,0)","v":0},null,null,{"$f":"B83","v":""},null,null,null,null,null,null,{"$f":"IF($P$37=\"J\",I83,0)","v":0}]
[]
[]
[null,"  B.a) Anpflanzung / Nachbesserung ohne Waldrand",null,null,null,null,null,null,null,null,null,"  B.a) Anpflanzung / Nachbesserung ohne Waldrand"]
[]
[null,"  Flächenanteil des\n  Nadelholzes:",null,null,{"$f":"IF(G57=\"\",\"\",G57/G54)","v":""},"   % der Gesamt-Pflanzung \n   (Anpflanzung, Saat und Waldrand)",null,null,null,null,null,"  Flächenanteil des\n  Nadelholzes:",null,null,{"$f":"IF(Q54=0,\"\",IF(Q57=0,\"\",IF($P$37=\"J\",Q57/Q54,\"\")))","v":""},"   % der Gesamt-Pflanzung \n   (Anpflanzung, Saat und Waldrand)"]
[]
[]
[null,"  Flächenanteil des nicht-\n  heimischen Laubholzes:","Fläche nicht-heimisches Laubholz",null,{"$f":"IF(G60=\"\",\"\",G60/G54)","v":""},"   % der Gesamt-Pflanzung \n   (Anpflanzung, Saat und Waldrand)",null,null,null,null,null,"  Flächenanteil des nicht-\n  heimischen Laubholzes:","Fläche nicht-heimisches Laubholz",null,{"$f":"IF(Q57=0,\"\",IF(Q60=0,\"\",IF($P$37=\"J\",Q60/Q57,\"\")))","v":""},"   % der Gesamt-Pflanzung \n   (Anpflanzung, Saat und Waldrand)"]
[]
[]
[null,"Kz.","Baumart",null,"Herk-Nr. *)",null,"Stück","EUR / St.","Summe EUR",null,null,"Kz.","Baumart",null,"Herk-Nr. *)",null,"Stück","EUR / St.","Summe EUR"]
[null,".",{"$f":"VLOOKUP($B95,$B$244:$O$250,2,FALSE)","v":"  "},null,null,null,null,{"$f":"IF($B95=\".\",\"\",\nIF($E$88>0.35,\n0,\nIF($E$88>0.2,\nVLOOKUP($B95,$B$244:$O$250,6,FALSE),\nIF($E$88<=0.2,\nVLOOKUP($B95,$B$244:$O$250,12,FALSE)\n))))","v":""},{"$f":"IF(ISNUMBER(H95),G95*H95,\" \")","v":" "},null,null,{"$f":"IF($P$37=\"J\",B95,\".\")","v":"."},{"$f":"IF($P$37=\"J\",C95,VLOOKUP($L95,$B$244:$O$250,2,FALSE))","v":"  "},null,{"$f":"IF($P$37=\"J\",E95,\"\")","v":""},null,{"$f":"IF($P$37=\"J\",G95,\"\")","v":""},{"$f":"IF($L95=\".\",\"\",\nIF($E$88>0.35,\n0,\nIF($E$88>0.2,\nVLOOKUP($B95,$B$244:$O$250,6,FALSE),\nIF($E$88<=0.2,\nVLOOKUP($B95,$B$244:$O$250,12,FALSE)\n))))","v":""},{"$f":"IF(ISNUMBER(R95),Q95*R95,\" \")","v":" "}]
[null,".","  ",null,null,null,null,"",{"$f":"IF(ISNUMBER(H96),G96*H96,\" \")","v":" "},null,null,".","  ",null,{"$f":"IF($P$37=\"J\",E96,\"\")","v":""},null,"","",{"$f":"IF(ISNUMBER(R96),Q96*R96,\" \")","v":" "}]
[null,".","  ",null,null,null,null,""," ",null,null,".","  ",null,"",null,"",""," "]
[null,".","  ",null,null,null,null,""," ",null,null,".","  ",null,"",null,"","",{"$f":"IF(ISNUMBER(R98),Q98*R98,\" \")","v":" "}]
[null,".","  ",null,null,null,null,""," ",null,null,".","  ",null,"",null,"","",{"$f":"IF(ISNUMBER(R99),Q99*R99,\" \")","v":" "}]
[null,".","  ",null,null,null,null,""," ",null,null,".","  ",null,"",null,"",""," "]
[null,".","  ",null,null,null,null,""," ",null,null,".","  ",null,"",null,"",""," "]
[]
[null,"  Förderbetrag für B.a) Anpflanzung: ",null,null,null,null,null,null,{"$f":"IF(SUM(I95:I101)=0,0,SUM(I95:I101))","v":0},null,null,"  Förderbetrag für B.a) Anpflanzung: ",null,null,null,null,null,null,{"$f":"IF(SUM(S95:S101)=0,0,SUM(S95:S101))","v":0}]
[]
["   *)  Hinweis:  Die weiteren für das Herkunftsgebiet empfohlenen Herkünfte"]
["       sowie die Ersatzherkünfte laut dem Erl. d. MULNV v. 03.02.2020 "]
["       dürfen alternativ verwendet werden."]
[]
[]
[null,"  B.b) Saat ohne Waldrand",null,null,null,null,null,null,null,null,null,{"$f":"B110","v":"  B.b) Saat ohne Waldrand"}]
[]
[null,"Saat",null,null,"Herk-Nr. *)","Fläche\n in ha","EUR / ha",null,"Summe EUR",null,null,"Saat",null,null,"Herk-Nr. *)","Fläche\n in ha","EUR / ha",null,"Summe EUR"]
[null,"Stieleiche",null,null,null,null,2700,null,{"$f":"G113*F113","v":0},null,null,"Stieleiche",null,null,{"$f":"IF($P$37=\"j\",E113,\"\")","v":""},"",2700,null,{"$f":"IF(P113=\"\",\"\",MIN(Q113*P113,I113))","v":""}]
[null,"Traubeneiche ",null,null,null,null,2700,null,{"$f":"G114*F114","v":0},null,null,"Traubeneiche ",null,null,"","",2700,null,{"$f":"IF(P114=\"\",\"\",MIN(Q114*P114,I114))","v":""}]
[null,"Bucheckern ",null,null,null,null,2520,null,0,null,null,"Bucheckern ",null,null,"","",2520,null,""]
[]
[null,"  Förderbetrag für B.b) Saat:",null,null,null,null,null,null,{"$f":"IF(SUM(I113:I115)=0,0,SUM(I113:I115))","v":0},null,null,"  Förderbetrag für B.b) Saat:",null,null,null,null,null,null,{"$f":"IF(SUM(S113:S115)=0,0,SUM(S113:S115))","v":0}]
[]
[]
[null,"  B.c) Waldrand",null,null,null,null,null,null,null,null,null,{"$f":"B120","v":"  B.c) Waldrand"}]
[]
[null,"   Pflicht bei Aufforstungen (ausgenommen Voranbau und Unterbau), \n   es sei denn, Lage, Flächengröße oder -ausformung lassen dies nicht zu.",null,null,null,null,null,null,null,null,null,"   Pflicht bei Aufforstungen (ausgenommen Voranbau und Unterbau), \n   es sei denn, Lage, Flächengröße oder -ausformung lassen dies nicht zu."]
[null,"   Waldrand - in laufenden Metern:",null,null,null,null,null,null,"lfd. M.",null,null,"   Waldrand - in laufenden Metern",null,null,null,null,{"$f":"IF($P$37=\"J\",G123,\"\")","v":""},null,"lfd. M."]
[]
[null,"   Tiefe des Waldrands (mind. 10 Meter):",null,null,null,null,null,null,"Meter",null,null,"   Tiefe des Waldrands (mind. 10 Meter):",null,null,null,null,{"$f":"IF($P$37=\"J\",G125,\"\")","v":""},null,"Meter"]
[]
[null,"   Verwendete Baum- und Straucharten bitte aufzählen\n   (Nadelholz und nicht heimisches Laubholz sind ausgeschlossen, RL-Nr. 2.3.2.3):"]
[]
[]
[]
[null,"   Falls kein Waldrand angelegt wird, bitte begründen, warum nicht:"]
[]
[]
[]
[null,"  Förderbetrag für B.c) Waldrand:",null,null,null,null,null,{"$f":"IF(G123=0,0,G123*2.2)","v":0},null,null,null,{"$f":"B135","v":"  Förderbetrag für B.c) Waldrand:"},null,null,null,null,null,{"$f":"IF(H135=0,0,MIN(H135,Q123*2.2))","v":0}]
[]
[]
[null,"  C. Schutz der Aufforstungen",null,null,null,null,null,null,null,null,null,{"$f":"B138","v":"  C. Schutz der Aufforstungen"}]
[]
[null,"  Nr. 2.1.2.5 oder Nr. 5.1.4 PKW-RL:",null,null,null,null,null,null,null,null,null,"  Nr. 2.1.2.5 oder Nr. 5.1.4 PKW-RL:"]
[null,"  Einzelschutz / je Pflanze:",null,null,null,null,"  St.",{"$f":"IF(ISBLANK(E141),0,3.5*E141)","v":0},null,null,null,"  Einzelschutz / je Pflanze:",null,null,{"$f":"IF($P$37=\"J\",E141,\" \")","v":" "},null,"  St.",{"$f":"IF(O141=\" \",0,3.5*O141)","v":0}]
[]
[]
[null,"  Nr. 2.1.2.5 oder Nr. 5.1.4 PKW-RL:",null,null,null,null,null,null,null,null,null,"  Nr. 2.1.2.5 oder Nr. 5.1.4 PKW-RL:"]
[null,"  Einzelschutz / chemisch:",null,null,null,null,"  kg",{"$f":"IF(ISBLANK(E145),0,10*E145)","v":0},null,null,null,"  Einzelschutz / chemisch:",null,null,{"$f":"IF($P$37=\"J\",E145,\" \")","v":" "},null,"  kg",{"$f":"IF(O145=\" \",0,10*O145)","v":0}]
[]
[]
[null,"  Nr. 2.1.2.5 oder Nr. 5.1.4 PKW-RL:",null,null,null,null,null,null,null,null,null,"  Nr. 2.1.2.5 oder Nr. 5.1.4 PKW-RL:"]
[null,"  Wildschutzzaun in lfd. M.:",null,null,null,null,"lfdm.",{"$f":"IF(ISBLANK(E149),0,7.5*E149)","v":0},null,null,null,"  Wildschutzzaun in lfd. M.:",null,null,{"$f":"IF($P$37=\"J\",E149,\" \")","v":" "},null,"  lfdm.",{"$f":"IF(O149=\" \",0,7.5*O149)","v":0}]
[]
[]
[null,"  Gesamtförderung aus diesem BBl.:",null,null,null,null,null,{"$f":"I83+I103+I117+H135+H141+H145+H149","v":0},null,null,null,"  Gesamtförderung aus diesem BBl.:",null,null,null,null,null,{"$f":"S83+S103+S117+R135+R141+R145+R149","v":0}]
[]
[]
[]
[null,null,"Doppelförderung: \nIst das Vorhaben eine..."]
[]
[null,null,"  • Ausgleichsmaßnahme?",null,null,null,"  ja",null,"  nein"]
[]
[null,null,"  • Maßnahme im Rahmen eines Ökokontos?"]
[null,null,null,null,null,null,"  ja",null,"  nein"]
[]
[null,null,"  • FöNa-Maßnahme?",null,null,null,"  ja",null,"  nein"]
[]
[null,null,"  • Wurden Flächen zwecks Naturschutz dem Zuwendungs-\n    empfänger unentgeltlich übertragen?"]
[null,null,null,null,null,null,"  ja",null,"  nein"]
[]
[]
[]
[null,"  Nur bei FBG-Anträgen: beteiligte Waldbesitzer",null,null,null,null,null,null,"EUR",null,null,"  Nur bei FBG-Anträgen: beteiligte Waldbesitzer",null,null,null,null,null,null,"EUR"]
[]
[null,null,null,null,null,null,null,null,null,null,null,null,{"$f":"IF($P$37=\"J\",C172,\"\")","v":""},null,null,null,null,{"$f":"IF($P$37=\"J\",H172,\"\")","v":""}]
[null,null,null,null,null,null,null,null,null,null,null,null,{"$f":"IF($P$37=\"J\",C173,\"\")","v":""},null,null,null,null,{"$f":"IF($P$37=\"J\",H173,\"\")","v":""}]
[null,null,null,null,null,null,null,null,null,null,null,null,"",null,null,null,null,""]
[null,null,null,null,null,null,null,null,null,null,null,null,"",null,null,null,null,""]
[null,null,null,null,null,null,null,null,null,null,null,null,"",null,null,null,null,""]
[null,null,null,null,null,null,null,null,null,null,null,null,"",null,null,null,null,""]
[]
[]
[]
[]
[]
[null,"  II.  STELLUNGNAHME DER LEITUNG DES FBB",null,null,null,null,null,null,null,null,null,"  II.  STELLUNGNAHME DER LEITUNG DES FBB"]
[]
[null,null,"Fachliche Stellungnahme, \nfalls Planung nicht durch staatliche(n) Förster(in) erfolgte, \nNamen der forstfachlich qualifizierten Person angeben:",null,null,null,null,null,null,null,null,null,"Fachliche Stellungnahme (falls Abweichung) "]
[]
[]
[]
[null,null,"Das beantragte Vorhaben wird von mir für forstfachlich notwendig und zweckmäßig gehalten.",null,null,null,null,null,null,null,null,null,{"$f":"\"(Soweit Abweichung:) Die Änderung des Vorhabens wird von \nmir für forstfachlich notwendig und zweckmäßig gehalten.\"","v":"(Soweit Abweichung:) Die Änderung des Vorhabens wird von \nmir für forstfachlich notwendig und zweckmäßig gehalten."}]
[]
[]
[null,null,"Ort, Datum",null,null,null,null,null,"Name und Unterschrift d. FBB",null,null,null,"Ort, Datum",null,null,null,null,null,"Name und Unterschrift d. FBB"]
[]
[]
[]
[null,"   III.  Prüfung der bewilligenden Stelle",null,null,null,null,null,null,null,null,null,"   III.  Prüfung der bewilligenden Stelle"]
[]
[]
[null,null,"Fragen zu Waldumbau"]
[null,null,"            Struktur des Vorbestandes (Nr. 2.3.1 der RL):"]
[null,null,"  •  Bei Aufforstung mit NH oder nicht heimischem Laubholz: \n      Enthielt der Vorbestand (Nr. 2.3.2.5 PKW-RL) mind. 50 %\n      an Nadelholz oder nicht heimischem Laubholz?"]
[]
[null,null,null,null,null,null,"  ja",null,"  nein"]
[null,null,"  •  Beträgt der Anteil von NH und nicht heimischem Laubholz an der Auf-\n      forstung max. 35 % der Fläche (20 % in Schutzgebieten nach Nr. 1.1.3) ? \n      (Ausnahme: Schutzgebietsverordnung legt niedrigere Anteile fest.\n      NH und nicht heimisches LH sind in Schutzgebieten nicht förderfähig)"]
[null,null,null,null,null,null,"  ja",null,"  nein"]
[null,null,"  • Bei Aufforstungen und Verjüngung: "]
[null,null,"     Wird bei der Maßnahme andere Bestands- \n     struktur als im Vorbestand gewählt (nach Nr. 2.3.2.4 PKW-RL) ?"]
[]
[null,null,null,null,null,null,"  ja",null,"  nein"]
[]
[null,null,"  • Falls Förderung für Nadelholz beantragt:"]
[null,null,"     Erfolgt die Einbringung der Nebenbaumarten und Begleitbaumarten \n     auf Kleinflächen von jeweils etwa 200 bis 3 000 Quadratmeter? \n     Erfolgt Mischung von Laub- und Nadelholz nicht einzeln oder reihenweise? \n     Erfolgt sie mit forstfachlich sinnvollen Pflanzverbänden (Nr. 2.3.2.6 RL) ?"]
[null,null,null,null,null,null,"  ja",null,"  nein"]
[]
[null,null,"  • Ist es Ziel, veränderte Bestandsstruktur zu schaffen (Nr. 2.3.2.4 PKW-RL)?"]
[]
[null,null,null,null,null,null,"  ja",null,"  nein"]
[]
[null,null,"  • Bei Nachbesserungen:"]
[null,null,"     Sind bei der geförderten Kultur in den ersten 60 Monaten nach \n     Pflanzung oder Saat aufgrund natürlicher Ereignisse (wie Frost, \n     Trockenheit, Überschwemmung, nicht jedoch Wildverbiss, \n     Mäusefraß oder Pflegemängel) Ausfälle in Höhe von mehr als\n     30 % der Pflanzenzahl oder einem Hektar zusammenhängender \n     Fläche aufgetreten (Nr. 2.1.2.3 PKW-RL)?"]
[]
[]
[]
[]
[]
[null,null,null,null,null,null,"  ja",null,"  nein"]
[]
[null,null,"  • Wurde mit den ursprünglich geförderten Baumarten nachgebessert? \n     Wurde zulässige Abweichung begründet (Nr. 2.3.2.8 PKW-RL)?"]
[null,null,null,null,null,null,"  ja",null,"  nein"]
[]
[null,null,"  • Bei Anlage eines Waldrandes und bei Saat (Nr. 2.3.2.7 PKW-RL):\n     Wurde Verbot, Nadelholz und nicht heimisches Laubholz einzubringen, \n     beachtet?"]
[null,null,null,null,null,null,"  ja",null,"  nein"]
[]
[]
[null,"  Folgende Belege sind beigefügt:",null,null,null,null,null,null,null,null,null,"  Folgende Belege sind beigefügt:"]
[]
[null,null,"Karte  (Maßstab 1 : 25.000)"]
[]
[]
[]
[]
[]
[null,null,null,null,null,null,"21 bis 35 % Nadelholzanteil (Fläche)",null,null,null,null,null,"0 bis 20 % Nadelholzanteil (Fläche)"]
[null,"A","Stiel-/Traubeneiche",null,null,null,1.5,null,null,null,null,null,1.8]
[null,"B","Rotbuche",null,null,null,1.4,null,null,null,null,null,1.7]
[null,"C","bitte LH-Baumart angeben",null,null,null,1.6,null,null,null,null,null,2]
[null,".","  ",null,null,null,"  ",null,null,null,null,null,"  "]
[null,"D","Douglasie",null,null,null,1.4,null,null,null,null,null,1.7]
[null,"E","Kiefer",null,null,null,1,null,null,null,null,null,1.2]
[null,"F","bitte NH-Baumart angeben",null,null,null,1.3,null,null,null,null,null,1.6]
[null,"."]
[null,".","Saat",null,null,null,"EUR / ha",null,null,null,null,null,"in den Zeilen 101 bis 103"]
[null,".","Stiel- und Traubeneiche ",null,null,null,2700,null,null,null,null,null,"berücksichtigt, keine"]
[null,".","Buche",null,null,null,2520,null,null,null,null,null,"Formel mit VERWEIS nötig"]